fUST/lending_fUST_20240923
["ID","MTS","AMOUNT","RATE_DAILY","PERIOD"]
[338891173,1727023840994,-500.0,0.00021661,2]
[338891174,1727023841003,-500.0,0.00021661,2]
[338891175,1727023841012,-500.0,0.00021661,2]
[338891176,1727023841021,-500.0,0.00021661,2]
[338891177,1727023841031,-117961.38883104,0.00021662,3]
[338891178,1727023841044,-183687.73152296,0.00021662,3]
[338891179,1727023841055,-60041.155743,0.00021669,3]
[338891180,1727023841064,-103429.78857714,0.00021671,3]
[338891181,1727023841076,-1999.98674099,0.00021671,3]
[338891211,1727023846164,-3202.11877771,0.00021671,3]
[338891212,1727023846219,-1008.58045056,0.00021671,3]
[338891217,1727024054778,500.0,0.00025,120]
[338891256,1727024848189,-180.805919,0.00020255,2]
[338891257,1727024848211,-7042.60310329,0.00020467,2]
[338891260,1727024948213,-17857.39689671,0.00020467,2]
[338891261,1727024948237,-464.97884803,0.00021,2]
[338891262,1727024948259,-150.0,0.00021,2]
[338891306,1727025040331,-4177.87884418,0.00021459,2]
[338891307,1727025040341,-500.0,0.00021472,3]
[338891308,1727025040350,-500.0,0.00021472,3]
[338891309,1727025040359,-500.0,0.00021472,3]
[338891310,1727025040368,-500.0,0.00021472,3]
[338891311,1727025040378,-500.0,0.00021472,3]
[338891312,1727025040388,-500.0,0.00021472,3]
[338891313,1727025040397,-500.0,0.00021472,3]
[338891314,1727025040406,-500.0,0.00021472,3]
[338891315,1727025040415,-500.0,0.00021472,3]
[338891316,1727025040425,-500.0,0.00021472,3]
[338891317,1727025040435,-208.9234097,0.000215,2]
[338891318,1727025040444,-208.9234097,0.000215,2]
[338891319,1727025040455,-208.9234097,0.000215,2]
[338891320,1727025040465,-207.8197055,0.000215,2]
[338891321,1727025040474,-1752.39460781,0.0002151,2]
[338891322,1727025040483,-702.08639622,0.00021528,2]
[338891323,1727025040492,-174.44533012,0.0002153,2]
[338891324,1727025040501,-174.44533012,0.00021548,2]
[338891325,1727025040510,-1000.0,0.00021562,2]
[338891326,1727025040519,-6757.83765285,0.00021599,2]
[338891327,1727025040529,-225.72932271,0.00021608,2]
[338891328,1727025040538,-300.0,0.00021608,2]
[338891329,1727025040547,-500.0,0.00021608,2]
[338891330,1727025040556,-500.0,0.00021608,2]
[338891331,1727025040564,-500.0,0.00021608,2]
[338891332,1727025040575,-283.39762725,0.00021608,2]
[338891333,1727025040584,-568.30571512,0.00021608,2]
[338891334,1727025040594,-500.0,0.00021608,2]
[338891335,1727025040603,-500.0,0.00021608,2]
[338891336,1727025040613,-500.0,0.00021608,2]
[338891337,1727025040623,-500.0,0.00021608,2]
[338891338,1727025040632,-500.0,0.00021608,2]
[338891339,1727025040641,-500.0,0.00021608,2]
[338891340,1727025040650,-500.0,0.00021608,2]
[338891341,1727025040659,-500.0,0.00021608,2]
[338891342,1727025040666,-500.0,0.00021608,2]
[338891343,1727025040675,-500.0,0.00021608,2]
[338891344,1727025040684,-533.21073434,0.00021608,2]
[338891345,1727025040693,-500.0,0.00021608,2]
[338891346,1727025040702,-500.0,0.00021608,2]
[338891347,1727025040711,-500.0,0.00021608,2]
[338891348,1727025040719,-500.0,0.00021608,2]
[338891349,1727025040729,-500.0,0.00021608,2]
[338891350,1727025040738,-500.0,0.00021608,2]
[338891351,1727025040747,-500.0,0.00021608,2]
[338891352,1727025040757,-500.0,0.00021608,2]
[338891353,1727025040766,-500.0,0.00021608,2]
[338891354,1727025040774,-500.0,0.00021608,2]
[338891355,1727025040784,-500.0,0.00021608,2]
[338891356,1727025040793,-500.0,0.00021608,2]
[338891357,1727025040802,-500.0,0.00021608,2]
[338891358,1727025040811,-500.0,0.00021608,2]
[338891359,1727025040821,-500.0,0.00021608,2]
[338891360,1727025040830,-500.0,0.00021608,2]
[338891361,1727025040839,-500.0,0.00021608,2]
[338891362,1727025040848,-500.0,0.00021608,2]
[338891363,1727025040857,-500.0,0.00021608,2]
[338891364,1727025040866,-500.0,0.00021608,2]
[338891365,1727025040875,-500.0,0.00021608,2]
[338891366,1727025040885,-500.0,0.00021608,2]
[338891367,1727025040895,-500.0,0.00021608,2]
[338891368,1727025040905,-198683.680537,0.00021609,3]
[338891369,1727025040914,-455.07,0.0002161,3]
[338891370,1727025040923,-303.37,0.00021617,3]
[338891371,1727025040933,-500.0,0.00021617,2]
[338891372,1727025040943,-500.0,0.00021617,2]
[338891373,1727025040952,-500.0,0.00021617,2]
[338891374,1727025040961,-500.0,0.00021617,2]
[338891375,1727025040971,-281.33962809,0.00021617,2]
[338891376,1727025040980,-218.24199392,0.00021617,2]
[338891377,1727025040990,-500.0,0.00021617,2]
[338891378,1727025040998,-500.0,0.00021617,2]
[338891379,1727025041012,-500.0,0.00021617,2]
[338891380,1727025041021,-500.0,0.00021617,2]
[338891381,1727025041030,-500.0,0.00021617,2]
[338891382,1727025041039,-496.43948561,0.00021617,2]
[338891383,1727025041049,-500.0,0.00021617,2]
[338891384,1727025041058,-32823.23561601,0.00021618,3]
[338891385,1727025041072,-831.80088519,0.00021618,3]
[338891391,1727025043562,-9876.32400226,0.00021618,3]
[338891473,1727026030164,-300.0,0.00020511,2]
[338891474,1727026030187,-300.0,0.00020511,2]
[338891475,1727026030321,-1498.56231055,0.00020512,2]
[338891481,1727026153128,-24900.0,0.00020449,2]
[338891482,1727026173120,-7139.2745635,0.00021186,2]
[338891483,1727026173143,-1752.39460781,0.0002132,2]
[338891512,1727026232655,-1025.13806818,0.0002142,2]
[338891539,1727026240478,-3050.34797487,0.0002142,2]
[338891540,1727026240490,-500.0,0.00021454,3]
[338891542,1727026240499,-500.0,0.00021454,3]
[338891544,1727026240508,-500.0,0.00021454,3]
[338891545,1727026240518,-500.0,0.00021454,3]
[338891546,1727026240528,-500.0,0.00021454,3]
[338891547,1727026240537,-500.0,0.00021454,3]
[338891548,1727026240546,-500.0,0.00021454,3]
[338891549,1727026240555,-500.0,0.00021454,3]
[338891550,1727026240564,-500.0,0.00021454,3]
[338891551,1727026240573,-500.0,0.00021454,3]
[338891552,1727026240582,-702.08639622,0.00021456,2]
[338891553,1727026240591,-174.44533012,0.00021464,2]
[338891554,1727026240600,-174.44533012,0.00021469,2]
[338891555,1727026240609,-174.44533012,0.00021473,2]
[338891556,1727026240618,-174.44533012,0.00021478,2]
[338891557,1727026240627,-1000.0,0.00021488,2]
[338891558,1727026240636,-29343.19819217,0.00021488,3]
[338891559,1727026240644,-502.0,0.00021512,2]
[338891560,1727026240654,-14818.23895955,0.00021515,2]
[338891561,1727026240663,-6757.83765384,0.00021531,2]
[338891562,1727026240672,-468.51,0.00021533,3]
[338891563,1727026240681,-234.25,0.00021533,3]
[338891564,1727026240690,-702.8,0.00021533,3]
[338891565,1727026240699,-500.0,0.00021542,2]
[338891566,1727026240708,-500.0,0.00021542,2]
[338891567,1727026240717,-300.0,0.00021542,2]
[338891568,1727026240726,-500.0,0.00021542,2]
[338891569,1727026240734,-500.0,0.00021542,2]
[338891570,1727026240745,-225.72932271,0.00021542,2]
[338891571,1727026240754,-500.0,0.00021542,2]
[338891572,1727026240763,-500.0,0.00021542,2]
[338891573,1727026240771,-500.0,0.00021542,2]
[338891574,1727026240780,-500.0,0.00021542,2]
[338891575,1727026240789,-500.0,0.00021542,2]
[338891576,1727026240798,-194.13425298,0.00021542,2]
[338891577,1727026240811,-13.20365458,0.00021542,2]
[338891578,1727026240820,-500.0,0.00021542,2]
[338891579,1727026240829,-500.0,0.00021542,2]
[338891580,1727026240838,-500.0,0.00021542,2]
[338891581,1727026240847,-500.0,0.00021542,2]
[338891582,1727026240856,-500.0,0.00021542,2]
[338891583,1727026240866,-500.0,0.00021542,2]
[338891584,1727026240874,-500.0,0.00021542,2]
[338891585,1727026240884,-500.0,0.00021542,2]
[338891586,1727026240893,-500.0,0.00021542,2]
[338891587,1727026240902,-461.52417079,0.00021542,2]
[338891588,1727026240911,-500.0,0.00021542,2]
[338891589,1727026240920,-500.0,0.00021542,2]
[338891590,1727026240929,-500.0,0.00021542,2]
[338891591,1727026240939,-500.0,0.00021542,2]
[338891592,1727026240948,-500.0,0.00021542,2]
[338891593,1727026240958,-500.0,0.00021542,2]
[338891594,1727026240967,-500.0,0.00021542,2]
[338891595,1727026240976,-500.0,0.00021542,2]
[338891596,1727026240985,-500.0,0.00021542,2]
[338891597,1727026240995,-500.0,0.00021542,2]
[338891598,1727026241005,-500.0,0.00021542,2]
[338891599,1727026241014,-500.0,0.00021542,2]
[338891600,1727026241023,-500.0,0.00021542,2]
[338891601,1727026241035,-500.0,0.00021542,2]
[338891602,1727026241044,-500.0,0.00021542,2]
[338891603,1727026241053,-500.0,0.00021542,2]
[338891604,1727026241063,-500.0,0.00021542,2]
[338891605,1727026241073,-500.0,0.00021542,2]
[338891606,1727026241082,-500.0,0.00021542,2]
[338891607,1727026241091,-500.0,0.00021542,2]
[338891608,1727026241100,-500.0,0.00021542,2]
[338891609,1727026241110,-500.0,0.00021542,2]
[338891610,1727026241120,-500.0,0.00021542,2]
[338891611,1727026241129,-500.0,0.00021542,2]
[338891612,1727026241138,-500.0,0.00021542,2]
[338891613,1727026241147,-500.0,0.00021542,2]
[338891614,1727026241157,-500.0,0.00021542,2]
[338891615,1727026241167,-500.0,0.00021542,2]
[338891616,1727026241176,-500.0,0.00021542,2]
[338891617,1727026241185,-500.0,0.00021542,2]
[338891618,1727026241195,-500.0,0.00021542,2]
[338891619,1727026241204,-500.0,0.00021542,2]
[338891620,1727026241213,-500.0,0.00021542,2]
[338891621,1727026241222,-500.0,0.00021542,2]
[338891622,1727026241232,-500.0,0.00021542,2]
[338891623,1727026241242,-500.0,0.00021542,2]
[338891624,1727026241251,-500.0,0.00021542,2]
[338891625,1727026241261,-136203.860238,0.00021543,3]
[338891626,1727026241271,-213.00615054,0.00021545,2]
[338891627,1727026241280,-500.0,0.00021545,2]
[338891628,1727026241289,-500.0,0.00021545,2]
[338891629,1727026241298,-500.0,0.00021545,2]
[338891630,1727026241308,-500.0,0.00021545,2]
[338891631,1727026241317,-500.0,0.00021545,2]
[338891632,1727026241326,-500.0,0.00021545,2]
[338891633,1727026241335,-374.36363554,0.00021545,2]
[338891634,1727026241345,-500.0,0.00021545,2]
[338891635,1727026241354,-500.0,0.00021545,2]
[338891636,1727026241363,-214.72092234,0.00021545,2]
[338891637,1727026241373,-500.0,0.00021545,2]
[338891638,1727026241382,-500.0,0.00021545,2]
[338891639,1727026241391,-500.0,0.00021545,2]
[338891640,1727026241400,-500.0,0.00021545,2]
[338891641,1727026241410,-442.77234387,0.00021545,2]
[338891642,1727026241419,-111822.24764029,0.00021546,3]
[338891659,1727026246520,-20807.06247275,0.000215,2]
[338891660,1727026246530,-24381.61259771,0.00021546,3]
[338891661,1727026246539,-68101.930119,0.00021548,3]
[338891662,1727026246548,-983.397643,0.00021548,2]
[338891663,1727026246559,-983.397643,0.00021548,2]
[338891664,1727026246569,-68101.930119,0.00021549,3]
[338891665,1727026246578,-983.397643,0.00021553,2]
[338891666,1727026246587,-983.397643,0.00021553,2]
[338891667,1727026246596,-54069.2268202,0.00021554,3]
[338891668,1727026246606,-108138.45364,0.00021555,3]
[338891669,1727026246617,-983.397643,0.00021556,2]
[338891670,1727026246627,-983.397643,0.00021556,2]
[338891671,1727026246638,-52602.30715166,0.00021557,3]
[338891688,1727026640762,5000.0,0.00025,120]
[338891695,1727026987220,1500.0,0.000141,2]
[338891701,1727027156246,-171.765623,0.00020185,2]
[338891702,1727027156268,-300.0,0.00020448,2]
[338891703,1727027156291,-300.0,0.00020448,2]
[338891704,1727027156318,-1388.8925011,0.00020449,2]
[338891713,1727027253107,-1583.77667402,0.00020269,2]
[338891726,1727027349510,-23316.22332598,0.00020269,2]
[338891727,1727027351105,-6957.55364888,0.00020827,2]
[338891728,1727027351127,-6957.55364889,0.0002117,2]
[338891729,1727027351149,-1870.87380229,0.00021209,2]
[338891730,1727027351172,-416.7431152,0.000213,2]
[338891731,1727027351192,-153.0,0.000213,2]
[338891732,1727027351213,-395.1988253,0.000213,2]
[338891733,1727027351235,-153.0,0.000213,2]
[338891781,1727027439724,-195.70785095,0.00021399,2]
[338891782,1727027439734,-631.87775658,0.00021404,2]
[338891783,1727027439743,-1000.0,0.00021425,2]
[338891784,1727027439752,-39474.62895739,0.00021433,3]
[338891785,1727027439763,-500.0,0.00021498,2]
[338891786,1727027439773,-500.0,0.00021498,2]
[338891787,1727027439783,-500.0,0.00021498,2]
[338891788,1727027439792,-500.0,0.00021498,2]
[338891789,1727027439801,-500.0,0.00021498,2]
[338891790,1727027439812,-500.0,0.00021498,2]
[338891791,1727027439822,-500.0,0.00021498,2]
[338891792,1727027439832,-500.0,0.00021498,2]
[338891794,1727027439841,-500.0,0.00021498,2]
[338891796,1727027439850,-500.0,0.00021498,2]
[338891798,1727027439859,-500.0,0.00021498,2]
[338891799,1727027439869,-500.0,0.00021498,2]
[338891801,1727027439878,-500.0,0.00021498,2]
[338891803,1727027439887,-500.0,0.00021498,2]
[338891805,1727027439898,-500.0,0.00021498,2]
[338891806,1727027439907,-500.0,0.00021498,2]
[338891807,1727027439916,-500.0,0.00021498,2]
[338891808,1727027439927,-500.0,0.00021498,2]
[338891809,1727027439938,-500.0,0.00021498,2]
[338891810,1727027439947,-500.0,0.00021498,2]
[338891811,1727027439957,-500.0,0.00021498,2]
[338891812,1727027439966,-500.0,0.00021498,2]
[338891813,1727027439975,-500.0,0.00021498,2]
[338891814,1727027439984,-500.0,0.00021498,2]
[338891815,1727027439994,-500.0,0.00021498,2]
[338891816,1727027440007,-500.0,0.00021498,2]
[338891817,1727027440016,-500.0,0.00021498,2]
[338891818,1727027440027,-500.0,0.00021498,2]
[338891819,1727027440036,-500.0,0.00021498,2]
[338891820,1727027440046,-545.37175372,0.00021498,2]
[338891821,1727027440057,-500.0,0.00021498,2]
[338891822,1727027440066,-500.0,0.00021498,2]
[338891823,1727027440075,-500.0,0.00021498,2]
[338891824,1727027440084,-500.0,0.00021498,2]
[338891825,1727027440093,-500.0,0.00021498,2]
[338891826,1727027440102,-500.0,0.00021498,2]
[338891827,1727027440112,-500.0,0.00021498,2]
[338891828,1727027440122,-500.0,0.00021498,2]
[338891829,1727027440133,-500.0,0.00021498,2]
[338891830,1727027440142,-500.0,0.00021498,2]
[338891831,1727027440154,-500.0,0.00021498,2]
[338891832,1727027440163,-500.0,0.00021498,2]
[338891833,1727027440171,-500.0,0.00021498,2]
[338891834,1727027440183,-213.00615054,0.00021499,2]
[338891835,1727027440192,-500.0,0.00021499,2]
[338891836,1727027440203,-500.0,0.00021499,2]
[338891837,1727027440214,-500.0,0.00021499,2]
[338891838,1727027440222,-500.0,0.00021499,2]
[338891839,1727027440232,-500.0,0.00021499,2]
[338891840,1727027440328,-500.0,0.00021499,2]
[338891841,1727027440337,-474.53072178,0.00021499,2]
[338891842,1727027440347,-500.0,0.00021499,2]
[338891843,1727027440359,-500.0,0.00021499,2]
[338891844,1727027440369,-500.0,0.00021499,2]
[338891845,1727027440379,-500.0,0.00021499,2]
[338891846,1727027440388,-500.0,0.00021499,2]
[338891847,1727027440398,-519.45266632,0.00021499,2]
[338891848,1727027440408,-500.0,0.00021499,2]
[338891849,1727027440417,-500.0,0.00021499,2]
[338891850,1727027440426,-442.77234387,0.00021499,2]
[338891851,1727027440437,-239.322445,0.000215,2]
[338891852,1727027440447,-208.9234097,0.000215,2]
[338891853,1727027440456,-153.0,0.000215,2]
[338891854,1727027440467,-306.0,0.000215,2]
[338891855,1727027440477,-208.7923626,0.000215,2]
[338891856,1727027440488,-208.9234097,0.000215,2]
[338891857,1727027440498,-208.9234097,0.000215,2]
[338891858,1727027440508,-153.0,0.000215,2]
[338891859,1727027440518,-233.57000001,0.000215,2]
[338891860,1727027440529,-500.0,0.000215,2]
[338891861,1727027440540,-500.0,0.000215,2]
[338891862,1727027440550,-500.0,0.000215,2]
[338891863,1727027440561,-153.0,0.000215,2]
[338891864,1727027440570,-208.9234097,0.000215,2]
[338891865,1727027440579,-153.0,0.000215,2]
[338891866,1727027440588,-208.9234097,0.000215,2]
[338891867,1727027440599,-150.112233,0.000215,2]
[338891868,1727027440609,-153.0,0.000215,2]
[338891869,1727027440621,-208.9234097,0.000215,2]
[338891870,1727027440630,-153.0,0.000215,2]
[338891871,1727027440643,-87227.5995978,0.000215,3]
[338891872,1727027440654,-115711.41345819,0.000215,3]
[338891873,1727027440667,-6749.45798581,0.000215,3]
[338891874,1727027440677,-153.14911,0.00021501,2]
[338891875,1727027440687,-43613.7997989,0.00021501,3]
[338891876,1727027440696,-13660.01399713,0.00021501,3]
[338891891,1727027442731,-372.36,0.0002149,3]
[338891892,1727027442743,-2436.509765,0.00021501,2]
[338891893,1727027442754,-47570.42172467,0.00021501,3]
[338891894,1727027442767,-43613.7997989,0.00021503,3]
[338891895,1727027442776,-18534.86703463,0.00021503,3]
[338891905,1727027445699,-745.1595877,0.00021501,2]
[338891944,1727028554128,-1858.1445861,0.00020348,2]
[338891945,1727028554152,-810.01651668,0.00021,2]
[338891946,1727028554174,-6775.8327342,0.00021003,2]
[338891947,1727028554197,-300.0,0.00021255,2]
[338891948,1727028554220,-300.0,0.00021255,2]
[338891949,1727028554244,-1637.01457703,0.000213,2]
[338891950,1727028554269,-4368.78770962,0.00021315,2]
[338892005,1727028638062,-1024.75430339,0.000213,2]
[338892006,1727028638073,-2407.04502468,0.00021315,2]
[338892007,1727028638083,-174.44533012,0.00021364,2]
[338892008,1727028638093,-300.0,0.00021383,2]
[338892009,1727028638102,-1000.0,0.00021384,2]
[338892010,1727028638112,-11635.98091078,0.00021384,3]
[338892011,1727028638122,-153.0,0.000214,2]
[338892012,1727028638132,-208.6901718,0.000214,2]
[338892013,1727028638142,-153.0,0.000214,2]
[338892014,1727028638151,-153.0,0.000214,2]
[338892015,1727028638161,-153.0,0.000214,2]
[338892016,1727028638170,-153.0,0.000214,2]
[338892017,1727028638180,-174.44533012,0.00021403,2]
[338892018,1727028638189,-174.44533012,0.00021442,2]
[338892019,1727028638199,-585.03,0.00021443,3]
[338892020,1727028638208,-292.51,0.00021443,3]
[338892021,1727028638218,-877.58,0.00021443,3]
[338892022,1727028638227,-628.00587609,0.00021448,2]
[338892023,1727028638237,-442.47974869,0.00021452,2]
[338892024,1727028638247,-500.0,0.00021452,2]
[338892025,1727028638256,-580.21192989,0.00021452,2]
[338892026,1727028638266,-500.0,0.00021452,2]
[338892027,1727028638275,-580.21192989,0.00021452,2]
[338892028,1727028638284,-450.0,0.00021452,2]
[338892029,1727028638294,-580.21192989,0.00021452,2]
[338892030,1727028638303,-500.0,0.00021452,2]
[338892031,1727028638314,-580.21192989,0.00021452,2]
[338892032,1727028638325,-500.0,0.00021452,2]
[338892033,1727028638335,-580.21192989,0.00021452,2]
[338892034,1727028638344,-500.0,0.00021452,2]
[338892035,1727028638354,-580.21192989,0.00021452,2]
[338892036,1727028638363,-500.0,0.00021452,2]
[338892037,1727028638372,-437.20994153,0.00021452,2]
[338892046,1727028639856,-143.00198836,0.00021452,2]
[338892047,1727028639865,-500.0,0.00021452,2]
[338892048,1727028639875,-580.21192989,0.00021452,2]
[338892049,1727028639986,-580.21192989,0.00021452,2]
[338892050,1727028639996,-500.0,0.00021452,2]
[338892051,1727028640005,-580.21192989,0.00021452,2]
[338892052,1727028640014,-500.0,0.00021452,2]
[338892053,1727028640023,-580.21192989,0.00021452,2]
[338892054,1727028640033,-580.21192989,0.00021452,2]
[338892055,1727028640042,-580.21192989,0.00021452,2]
[338892056,1727028640052,-580.21192989,0.00021452,2]
[338892057,1727028640061,-580.21192989,0.00021452,2]
[338892058,1727028640071,-580.21192989,0.00021452,2]
[338892059,1727028640079,-580.21192989,0.00021452,2]
[338892060,1727028640089,-580.21192989,0.00021452,2]
[338892061,1727028640098,-580.21192989,0.00021452,2]
[338892062,1727028640108,-580.21192989,0.00021452,2]
[338892063,1727028640118,-580.21192989,0.00021452,2]
[338892064,1727028640127,-580.21192989,0.00021452,2]
[338892065,1727028640137,-580.21192989,0.00021452,2]
[338892066,1727028640146,-580.21192989,0.00021452,2]
[338892067,1727028640155,-580.21192989,0.00021452,2]
[338892068,1727028640166,-580.21192989,0.00021452,2]
[338892069,1727028640175,-580.21192989,0.00021452,2]
[338892070,1727028640185,-580.21192989,0.00021452,2]
[338892071,1727028640194,-580.21192989,0.00021452,2]
[338892072,1727028640203,-580.21192989,0.00021452,2]
[338892073,1727028640216,-580.21192989,0.00021452,2]
[338892074,1727028640226,-580.21192989,0.00021452,2]
[338892075,1727028640236,-580.21192989,0.00021452,2]
[338892076,1727028640245,-580.21192989,0.00021452,2]
[338892077,1727028640256,-580.21192989,0.00021452,2]
[338892078,1727028640265,-580.21192989,0.00021452,2]
[338892079,1727028640274,-580.21192989,0.00021452,2]
[338892080,1727028640284,-580.21192989,0.00021452,2]
[338892081,1727028640293,-580.21192989,0.00021452,2]
[338892082,1727028640302,-580.21192989,0.00021452,2]
[338892083,1727028640312,-580.21192989,0.00021452,2]
[338892084,1727028640321,-580.21192989,0.00021452,2]
[338892085,1727028640330,-580.21192989,0.00021452,2]
[338892086,1727028640341,-580.21192989,0.00021452,2]
[338892087,1727028640350,-580.21192989,0.00021452,2]
[338892088,1727028640360,-580.21192989,0.00021452,2]
[338892089,1727028640370,-580.21192989,0.00021452,2]
[338892090,1727028640380,-580.21192989,0.00021452,2]
[338892091,1727028640389,-57142.7656218,0.00021452,3]
[338892092,1727028640398,-213.00615054,0.00021453,2]
[338892093,1727028640407,-500.0,0.00021453,2]
[338892094,1727028640417,-500.0,0.00021453,2]
[338892095,1727028640426,-500.0,0.00021453,2]
[338892096,1727028640436,-500.0,0.00021453,2]
[338892097,1727028640446,-500.0,0.00021453,2]
[338892098,1727028640455,-500.0,0.00021453,2]
[338892099,1727028640466,-474.53072178,0.00021453,2]
[338892100,1727028640475,-500.0,0.00021453,2]
[338892101,1727028640485,-500.0,0.00021453,2]
[338892102,1727028640494,-519.45266632,0.00021453,2]
[338892103,1727028640503,-500.0,0.00021453,2]
[338892104,1727028640512,-500.0,0.00021453,2]
[338892105,1727028640521,-500.0,0.00021453,2]
[338892106,1727028640531,-500.0,0.00021453,2]
[338892107,1727028640540,-500.0,0.00021453,2]
[338892108,1727028640551,-500.0,0.00021453,2]
[338892109,1727028640560,-500.0,0.00021453,2]
[338892110,1727028640570,-57142.7656218,0.00021454,3]
[338892111,1727028640579,-89019.27229494,0.00021454,3]
[338892112,1727028640591,-25266.25894906,0.00021454,3]
[338892113,1727028640600,-5984.62649221,0.00021463,3]
[338892114,1727028640611,-28586.38736625,0.00021463,3]
[338892126,1727028642915,-36.94560189,0.00021453,2]
[338892148,1727028694407,1357.2181516,0.00020418,2]
[338892240,1727029747144,-478.45338864,0.000167,2]
[338892242,1727029754129,-163.177341,0.00020116,2]
[338892243,1727029754153,-300.0,0.00020343,2]
[338892244,1727029754177,-300.0,0.00020343,2]
[338892245,1727029754199,-21689.72450034,0.00020344,2]
[338892246,1727029754228,-3210.27549966,0.00020344,2]
[338892247,1727029754249,-7008.0525792,0.00020351,2]
[338892248,1727029754270,-6736.50514899,0.00020912,2]
[338892310,1727029838226,-2495.13254434,0.00021269,2]
[338892317,1727029841838,-1484.91508733,0.00021269,2]
[338892318,1727029841850,-473.21000055,0.00021269,2]
[338892319,1727029842007,-2283.24751678,0.00021269,2]
[338892320,1727029842018,-185.07659054,0.00021308,2]
[338892321,1727029842029,-185.07659053,0.00021322,2]
[338892322,1727029842039,-252.0,0.00021332,2]
[338892323,1727029842048,-1000.0,0.00021333,2]
[338892324,1727029842059,-833.08367651,0.00021344,2]
[338892325,1727029842070,-363.02,0.00021398,3]
[338892326,1727029842080,-181.51,0.00021398,3]
[338892327,1727029842090,-150.0,0.000214,2]
[338892328,1727029842103,-3000.0,0.000214,2]
[338892329,1727029842113,-150.112233,0.000214,2]
[338892330,1727029842123,-233.57000001,0.000214,2]
[338892331,1727029842132,-500.0,0.000214,2]
[338892332,1727029842142,-500.0,0.000214,2]
[338892333,1727029842151,-500.0,0.000214,2]
[338892334,1727029842162,-39474.62895739,0.00021405,3]
[338892335,1727029842172,-500.0,0.00021407,2]
[338892336,1727029842182,-500.0,0.00021407,2]
[338892337,1727029842193,-753.73326162,0.00021407,2]
[338892338,1727029842202,-500.0,0.00021407,2]
[338892339,1727029842212,-500.0,0.00021407,2]
[338892340,1727029842221,-500.0,0.00021407,2]
[338892341,1727029842231,-384.97890808,0.00021407,2]
[338892342,1727029842241,-753.73326162,0.00021407,2]
[338892343,1727029842251,-500.0,0.00021407,2]
[338892344,1727029842260,-450.67732708,0.00021407,2]
[338892345,1727029842270,-500.0,0.00021407,2]
[338892346,1727029842280,-753.73326162,0.00021407,2]
[338892347,1727029842289,-500.0,0.00021407,2]
[338892348,1727029842299,-506.5241708,0.00021407,2]
[338892349,1727029842308,-753.73326162,0.00021407,2]
[338892350,1727029842317,-500.0,0.00021407,2]
[338892351,1727029842327,-500.0,0.00021407,2]
[338892352,1727029842336,-500.03953449,0.00021407,2]
[338892353,1727029842346,-500.0,0.00021407,2]
[338892354,1727029842356,-753.73326162,0.00021407,2]
[338892355,1727029842366,-500.0,0.00021407,2]
[338892356,1727029842375,-753.73326162,0.00021407,2]
[338892357,1727029842385,-500.0,0.00021407,2]
[338892358,1727029842395,-753.73326162,0.00021407,2]
[338892359,1727029842404,-500.0,0.00021407,2]
[338892360,1727029842414,-500.0,0.00021407,2]
[338892361,1727029842423,-753.73326162,0.00021407,2]
[338892362,1727029842432,-500.0,0.00021407,2]
[338892363,1727029842442,-753.73326162,0.00021407,2]
[338892364,1727029842452,-500.0,0.00021407,2]
[338892365,1727029842462,-500.0,0.00021407,2]